[Event "IV Copa Marcel Duchamp 2020"]
[Site "Montevideo"]
[Date "2020.02.15"]
[Round "9.32"]
[White "Munoz Rozas, Diego"]
[Black "Belistri, Ubaldo"]
[Result "0-1"]
[ECO "A41"]
[WhiteElo "1685"]
[BlackElo "1877"]
[Annotator "NA"]
[PlyCount "48"]
[EventDate "2020.02.08"]
[EventType "swiss"]
[EventCountry "URU"]
[SourceTitle "playchess.com"]
[Source "ChessBase"]
[SourceQuality "1"]
[TimeControl "5400+30"]

1. d4 {[%emt 0:19:17]} d6 {[%emt 0:01:35]} 2. Nf3 {[%emt 0:00:14]} Nf6 {[%emt 0:00:43]} 3. Bf4 {[%emt 0:00:09]} Bg4 {[%emt 0:03:39]} 4. e3 {[%emt 0:00:19]} Nbd7 {[%emt 0:01:15]} 5. Bb5 {[%emt 0:00:20]} c6 {[%emt 0:02:01]} (5... e5 $5 6. dxe5 dxe5 $11) 6. Be2 {[%emt 0:00:12]} Qb6 {[%emt 0:08:01]} 7. Qc1 {[%emt 0:00:06] [#]} e5 $1 {[%emt 0:11:47]} 8. dxe5 {[%emt 0:00:05]} dxe5 {[%emt 0:00:20]} 9. Bg5 $17 {[%emt 0:00:15]} (9. Bg3 $11 {keeps the balance.}) 9... e4 {[%emt 0:03:45]} 10. Bxf6 {[%emt 0:10:20]} Nxf6 {[%emt 0:01:57]} 11. Nd4 {[%emt 0:01:26]} Bxe2 {[%emt 0:04:47]} 12. Nxe2 {[%emt 0:00:06]} Bd6 {[%emt 0:03:48]} 13. O-O {[%emt 0:00:32]} Be5 {[%emt 0:00:53]} 14. c3 {[%emt 0:00:15]} O-O {[%emt 0:05:01]} 15. Nd2 {[%emt 0:00:16]} Rfe8 {[%emt 0:06:39]} 16. Ng3 {[%emt 0:03:03]} Bxg3 {[%emt 0:08:07]} 17. hxg3 {[%emt 0:00:18]} Qc5 {[%emt 0:02:00]} 18. Qd1 {[%emt 0:00:10]} Qg5 {[%emt 0:02:01]} 19. Qe2 {[%emt 0:00:28]} Ng4 {[%emt 0:04:06]} 20. Rfd1 {[%emt 0:03:45]} Re6 {[%emt 0:04:16]} 21. Qc4 {[%emt 0:03:27]} Rae8 {[%emt 0:02:42]} 22. b4 {[%emt 0:02:15]} Nxe3 {[%emt 0:03:29]} 23. Nxe4 {[%emt 0:01:29]} Rxe4 {[%emt 0:00:49]} 24. Rd4 {[%emt 0:00:38]} Nxc4 {[%emt 0:00:37]} 0-1